bitfinex/quotes_BTCUSD_20251212
["timestamp","ask_amount","ask_price","bid_price","bid_amount"]
[1765501088747,1.11217133,92001.0,92000.0,2.84884066]
[1765501088954,1.05128233,92001.0,92000.0,2.84884066]
[1765501089175,1.08002513,92001.0,92000.0,2.09708758]
[1765501089382,0.80328233,92001.0,92000.0,1.90762111]
[1765501089706,0.80328233,92001.0,92000.0,1.84236319]
[1765501089921,0.80328233,92001.0,92000.0,1.80973423]
[1765501090211,0.80328233,92001.0,92000.0,1.24266731]
[1765501090384,0.80328233,92001.0,92000.0,1.14639572]
[1765501090556,0.80328233,92001.0,92000.0,0.83834642]
[1765501090755,0.80328233,92001.0,92000.0,0.44148737]
[1765501090962,0.80328233,92001.0,92000.0,0.34211311]
[1765501091183,0.80328233,92001.0,92000.0,0.30948415]
[1765501093081,0.80332233,92001.0,92000.0,0.30948415]
[1765501093854,0.77632894,92001.0,92000.0,0.30948415]
[1765501094053,0.27781994,92001.0,92000.0,0.30948415]
[1765501094189,0.25475175,92001.0,92000.0,0.30948415]
[1765501094388,0.54545175,92001.0,92000.0,0.30948415]
[1765501094591,0.25475175,92001.0,92000.0,0.30948415]
[1765501095031,0.25475175,92001.0,91963.0,0.24065084]
[1765501095032,0.01087393,91963.0,91941.0,0.01087654]
[1765501095255,0.21753584,91939.0,91926.0,0.03432]
[1765501095410,0.044504,91925.0,91911.0,0.10188]
[1765501095612,0.01000089,91921.0,91911.0,0.10188]
[1765501096375,0.01038969,91921.0,91911.0,0.11276009]
[1765501096533,0.01038969,91921.0,91911.0,0.10188]
[1765501097105,0.0003888,91921.0,91911.0,0.10188]
[1765501097325,0.0003888,91921.0,91911.0,0.04520009]
[1765501097527,0.01088032,91909.0,91882.0,0.01088352]
[1765501097750,0.01000089,91901.0,91883.0,0.03482]
[1765501097956,0.01087713,91936.0,91908.0,0.01088044]
[1765501098155,0.01004584,91935.0,91913.0,0.01087985]
[1765501098360,0.044504,91923.0,91914.0,0.01087973]
[1765501098596,0.044504,91923.0,91914.0,0.29196287]
[1765501098805,0.044504,91923.0,91912.0,0.01087997]
[1765501099007,0.044504,91920.0,91917.0,0.01087938]
[1765501099206,0.044504,91923.0,91914.0,0.01087973]
[1765501099799,0.2907,91936.0,91914.0,0.22847238]
[1765501100005,0.01000089,91927.0,91920.0,0.04654]
[1765501100226,0.01000089,91927.0,91918.0,0.01087926]
[1765501100431,0.0448928,91921.0,91918.0,0.01087926]
[1765501100602,0.0003888,91921.0,91919.0,0.07437]
[1765501100803,0.0003888,91921.0,91920.0,0.04654]
[1765501101360,0.0003888,91921.0,91920.0,0.12091]
[1765501101977,0.0003888,91921.0,91912.0,0.07437]
[1765501102179,0.0003888,91921.0,91920.0,0.01631845]
[1765501102500,0.0448928,91921.0,91920.0,0.01631845]
[1765501102653,0.0448928,91921.0,91907.0,0.01088056]
[1765501102855,0.0003888,91921.0,91918.0,0.01087926]
[1765501103198,0.0003888,91921.0,91920.0,0.04654]
[1765501103614,0.0003888,91921.0,91920.0,0.12091]
[1765501105613,0.0003888,91921.0,91920.0,0.12323283]
[1765501106485,0.0003888,91921.0,91920.0,0.14499088]
[1765501106924,0.0003888,91921.0,91920.0,0.20855888]
[1765501108080,0.0003888,91921.0,91920.0,0.12323283]
[1765501108692,0.0003888,91921.0,91920.0,0.14063283]
[1765501108896,0.0003888,91921.0,91920.0,0.16239088]
[1765501113044,0.0003888,91921.0,91920.0,0.14063283]
[1765501114063,0.0003888,91921.0,91900.0,0.0002]
[1765501114064,0.01000089,91901.0,91900.0,0.0002]
[1765501114262,0.01161376,91901.0,91900.0,0.0002]
[1765501114805,0.01161376,91901.0,91900.0,0.00078109]
[1765501114994,0.00161287,91901.0,91900.0,0.00078109]
[1765501115373,0.21923835,91901.0,91900.0,0.00078109]
[1765501115574,0.22923924,91901.0,91900.0,0.00078109]
[1765501115945,0.31376074,91901.0,91900.0,0.00078109]
[1765501116139,0.60446074,91901.0,91900.0,0.00078109]
[1765501116993,0.62190074,91901.0,91900.0,0.00078109]
[1765501117264,0.29231287,91901.0,91900.0,0.00078109]
[1765501117469,0.30231376,91901.0,91900.0,0.00078109]
[1765501119348,0.01161376,91901.0,91900.0,0.00078109]
[1765501120241,0.01000089,91901.0,91900.0,0.00078109]
[1765501120935,0.07,91902.0,91900.0,0.00078109]
[1765501120936,0.07,91902.0,91900.0,0.12169109]
[1765501121130,0.044504,91906.0,91901.0,0.12091]
[1765501121427,0.044504,91906.0,91905.0,0.04654]
[1765501122211,0.04537892,91921.0,91906.0,0.21761364]
[1765501122516,0.04537892,91921.0,91906.0,0.04570068]
[1765501122856,0.07257618,91921.0,91907.0,0.07437]
[1765501123798,0.01087902,91920.0,91907.0,0.07437]
[1765501123976,0.07257618,91921.0,91907.0,0.07437]
[1765501124198,0.00087492,91921.0,91920.0,0.03482]
[1765501124785,0.00087492,91921.0,91920.0,0.08136]
[1765501125109,0.00087492,91921.0,91920.0,0.03482]
[1765501125322,0.00087492,91921.0,91915.0,0.03482]
[1765501126417,0.00087492,91921.0,91920.0,0.04693]
[1765501126974,0.00087492,91921.0,91920.0,0.1157]
[1765501129973,0.00087492,91921.0,91920.0,0.13314]
[1765501132363,0.21748403,91961.0,91920.0,0.13314]
[1765501132364,0.02000179,91960.0,91952.0,0.01087523]
[1765501132529,0.016322,91955.0,91952.0,0.0001171]
[1765501132738,0.044504,91953.0,91952.0,0.0001171]
[1765501133892,0.044504,91955.0,91954.0,0.010875]
[1765501134231,0.044504,91956.0,91952.0,0.0470471]
[1765501134424,0.044504,91956.0,91953.0,0.01087512]
[1765501134578,0.044504,91956.0,91952.0,0.05792233]
[1765501134779,0.044504,91956.0,91953.0,0.01087512]
[1765501134958,0.044504,91960.0,91953.0,0.01087512]
[1765501135165,0.044504,91960.0,91954.0,0.010875]
[1765501135565,0.044504,91967.0,91955.0,0.01087488]
[1765501135769,0.03722016,91966.0,91954.0,0.010875]
[1765501135988,0.044504,91958.0,91954.0,0.010875]
[1765501136164,0.044504,91958.0,91953.0,0.01087512]
[1765501136384,0.044504,91958.0,91955.0,0.01087488]
[1765501136584,0.044504,91958.0,91954.0,0.010875]
[1765501137039,0.02718425,91965.0,91957.0,0.04693]
[1765501137248,0.21750241,91953.0,91952.0,0.0001171]
[1765501137463,0.29663841,91953.0,91952.0,0.0001171]
[1765501137679,0.58820841,91953.0,91952.0,0.0001171]
[1765501137888,0.64825926,91953.0,91952.0,0.0001171]
[1765501138318,0.6382268,91953.0,91952.0,0.0001171]
[1765501139258,0.6207868,91953.0,91952.0,0.0001171]
[1765501139465,0.5462662,91953.0,91952.0,0.0001171]
[1765501139645,0.5637062,91953.0,91952.0,0.0001171]
[1765501139858,0.5362653,91953.0,91952.0,0.0001171]
[1765501140076,0.5537053,91953.0,91952.0,0.0001171]
[1765501140847,0.60372369,91953.0,91952.0,0.0001171]
[1765501141058,0.6137542,91953.0,91952.0,0.0001171]
[1765501141635,0.60284787,91901.0,91900.0,0.0002]
[1765501141794,0.62104787,91901.0,91900.0,0.0005888]
[1765501142015,0.60436787,91901.0,91900.0,0.0005888]
[1765501142211,0.62180787,91901.0,91900.0,0.0005888]
[1765501144014,0.60436787,91901.0,91900.0,0.0005888]
[1765501144194,0.62180787,91901.0,91900.0,0.0005888]
[1765501144390,0.63269305,91901.0,91900.0,0.0005888]
[1765501145152,0.64901505,91901.0,91900.0,0.0005888]
[1765501145356,0.65062792,91901.0,91900.0,0.0005888]
[1765501148551,0.65062792,91901.0,91900.0,0.00165606]
[1765501150915,0.65062792,91901.0,91854.0,0.03418]
[1765501150916,0.01088755,91848.0,91839.0,0.07771463]
[1765501151074,0.01088755,91848.0,91830.0,0.00099999]
[1765501151077,0.044504,91842.0,91830.0,0.07771463]
[1765501151429,0.04489239,91848.0,91841.0,0.04693]
[1765501151542,0.04489239,91848.0,91840.0,0.10295]
[1765501151752,0.044504,91843.0,91840.0,0.10295]
[1765501151952,0.044504,91843.0,91842.0,0.016322]
[1765501152153,0.044504,91843.0,91830.0,0.01088968]
[1765501152368,0.044504,91844.0,91828.0,0.14648463]
[1765501152572,0.01127594,91848.0,91824.0,0.07771463]
[1765501152573,0.06745839,91843.0,91824.0,0.07771463]
[1765501152791,0.01000089,91825.0,91824.0,0.07771463]
[1765501153015,0.01000089,91825.0,91815.0,0.25200708]
[1765501153016,0.01000089,91825.0,91816.0,0.11038156]
[1765501153232,0.01000089,91825.0,91818.0,0.21782221]
[1765501153431,0.01000089,91825.0,91818.0,0.22871135]
[1765501153640,0.01000089,91825.0,91822.0,0.01089063]
[1765501153858,0.01000089,91825.0,91822.0,0.22870105]
[1765501154261,0.01000089,91821.0,91820.0,0.01089087]
[1765501154512,0.044504,91825.0,91819.0,0.01089099]
[1765501154713,0.01000089,91834.0,91828.0,0.01088992]
[1765501154886,0.64011799,91840.0,91822.0,0.01089063]
[1765501155087,0.01000089,91826.0,91818.0,0.01089111]
[1765501155318,0.01000089,91826.0,91817.0,0.01089122]
[1765501155518,0.01000089,91823.0,91817.0,0.01089122]
[1765501155786,0.044504,91819.0,91818.0,0.01089111]
[1765501156326,0.01250137,91840.0,91818.0,0.01089111]
[1765501156327,0.01000089,91834.0,91832.0,0.01088945]
[1765501156533,0.01000089,91834.0,91823.0,0.21780893]
[1765501156534,0.00161287,91834.0,91798.0,0.09740423]
[1765501156757,0.00161287,91834.0,91788.0,0.20909569]
[1765501156758,0.044504,91808.0,91794.0,0.01089395]
[1765501156926,0.00038792,91808.0,91794.0,0.22877156]
[1765501157136,0.00038792,91808.0,91807.0,0.00270509]
[1765501157137,0.09652318,91808.0,91807.0,0.00270509]
[1765501157496,0.570566,91808.0,91807.0,0.00270509]
[1765501157642,0.57146037,91808.0,91807.0,0.00270509]
[1765501157844,0.61596437,91808.0,91807.0,0.00270509]
[1765501158053,0.12493844,91808.0,91807.0,0.00270509]
[1765501158429,0.04650479,91808.0,91807.0,0.00270509]
[1765501159288,0.279866,91808.0,91807.0,0.00270509]
[1765501159458,0.588086,91808.0,91807.0,0.00270509]
[1765501159888,0.57808511,91808.0,91807.0,0.00270509]
[1765501160174,0.588086,91808.0,91807.0,0.00270509]
[1765501161908,0.37024007,91808.0,91807.0,0.00270509]
[1765501162118,0.35272007,91808.0,91807.0,0.00270509]
[1765501162311,0.37024007,91808.0,91807.0,0.00270509]
[1765501162801,0.588086,91808.0,91807.0,0.00270509]
[1765501162962,0.30270168,91808.0,91807.0,0.00270509]
[1765501163163,0.32022168,91808.0,91807.0,0.00270509]
[1765501164360,0.01200168,91808.0,91807.0,0.00270509]
[1765501164567,0.01038881,91808.0,91807.0,0.00270509]
[1765501166316,0.00038792,91808.0,91807.0,0.00270509]
[1765501166717,0.04489192,91808.0,91807.0,0.00270509]
[1765501167097,0.00038792,91808.0,91807.0,0.00270509]
[1765501167730,0.00038792,91808.0,91807.0,0.17560001]
[1765501167882,0.00038792,91808.0,91807.0,0.00270509]
[1765501168870,0.00038792,91808.0,91807.0,0.12366509]
[1765501171034,0.00200079,91808.0,91807.0,0.00270509]
[1765501171234,0.00200079,91808.0,91793.0,0.01089407]
[1765501171235,0.01000089,91782.0,91781.0,0.00665235]
[1765501171500,0.01161376,91782.0,91781.0,0.00665235]
[1765501173893,0.21952052,91782.0,91781.0,0.00665235]
[1765501174145,0.51863703,91770.0,91769.0,9e-05]
[1765501174352,0.57026829,91770.0,91769.0,9e-05]
[1765501174729,0.58782829,91770.0,91769.0,9e-05]
[1765501175475,0.58821597,91770.0,91769.0,9e-05]
[1765501176668,0.59911657,91770.0,91769.0,9e-05]
[1765501176868,0.59911657,91770.0,91769.0,0.00119632]
[1765501177085,0.63179364,91770.0,91769.0,0.00119632]
[1765501177492,0.65466909,91770.0,91769.0,0.00119632]
[1765501177692,0.63179364,91770.0,91769.0,0.00119632]
[1765501177894,0.65466993,91770.0,91769.0,0.00119632]
[1765501178038,0.77889787,91770.0,91769.0,0.00119632]
[1765501178241,0.66459787,91770.0,91769.0,0.00119632]
[1765501178467,0.66459787,91770.0,91740.0,0.0002]
[1765501178468,0.56872431,91741.0,91740.0,0.0002]
[1765501178678,0.58628431,91741.0,91740.0,0.0002]
[1765501179523,0.58628431,91741.0,91724.0,0.01090227]
[1765501179524,0.2680258,91740.0,91656.0,0.03737]
[1765501179728,0.2680258,91740.0,88929.0,0.0017331]
[1765501179906,0.08302,91668.0,91504.0,0.20314205]
[1765501180104,0.00099999,91530.0,91529.0,0.21850998]
[1765501180372,0.05001839,91576.0,91530.0,0.64011799]
[1765501180592,0.00238929,91580.0,91500.0,0.64072867]
[1765501180593,0.00569854,91571.0,91550.0,0.00061068]
[1765501180806,0.00038931,91590.0,91561.0,0.64011799]
[1765501181000,0.09670567,91576.0,91562.0,0.01776]
[1765501181132,0.02277499,91575.0,91570.0,0.00061068]
[1765501181337,0.02277499,91574.0,91571.0,0.05952204]
[1765501181538,0.02277499,91573.0,91564.0,0.0431172]
[1765501181743,0.02277499,91572.0,91565.0,0.01796]
[1765501181943,0.00199998,91580.0,91549.0,0.01092311]
[1765501181944,0.02277499,91571.0,91566.0,0.01796]
[1765501182144,0.02277499,91570.0,91566.0,0.01796]
[1765501182498,0.00199998,91580.0,91567.0,0.018]
[1765501182499,0.02277499,91569.0,91567.0,0.018]
[1765501182792,0.01292176,91568.0,91567.0,0.018]
[1765501183024,0.00199998,91580.0,91567.0,0.16565644]
[1765501183227,0.00199998,91580.0,91567.0,0.07121678]
[1765501183440,0.00199998,91580.0,91568.0,0.018]
[1765501183645,0.00238647,91590.0,91570.0,0.64011799]
[1765501183868,0.00038649,91590.0,91581.0,0.64521929]
[1765501184075,0.00038649,91590.0,91583.0,0.5509]
[1765501184293,0.00038649,91590.0,91589.0,0.26300649]
[1765501184474,0.00038649,91590.0,91589.0,0.04312798]
[1765501184711,0.00038649,91590.0,91584.0,0.11050762]
[1765501184921,0.00038649,91590.0,91589.0,0.018]
[1765501185296,0.00038649,91590.0,91584.0,0.11050762]
[1765501185512,0.00038649,91590.0,91589.0,0.018]
[1765501185670,0.00199998,91580.0,91570.0,0.64011799]
[1765501186087,0.00199998,91580.0,91571.0,0.018]
[1765501186311,0.01091929,91581.0,91521.0,9e-05]
[1765501186312,0.00199998,91530.0,91521.0,9e-05]
[1765501186522,0.0109249,91534.0,91521.0,9e-05]
[1765501186742,0.00161287,91522.0,91521.0,9e-05]
[1765501187206,0.04611687,91522.0,91521.0,9e-05]
[1765501187417,0.11579687,91522.0,91521.0,9e-05]
[1765501187627,0.11618289,91522.0,91521.0,9e-05]
[1765501188319,0.00199889,91522.0,91521.0,9e-05]
[1765501188751,0.00199998,91500.0,91473.0,0.01093218]
[1765501188966,0.00199998,91500.0,91480.0,0.64011799]
[1765501188967,0.00361285,91500.0,91480.0,0.64011799]
[1765501189205,0.00161287,91500.0,91481.0,0.07493181]
[1765501189412,0.00161287,91500.0,91460.0,0.00099999]
[1765501189413,0.01092955,91495.0,91460.0,0.00099999]
[1765501189623,0.06968,91505.0,91460.0,0.00099999]
[1765501189624,0.01000089,91497.0,91470.0,0.64011799]
[1765501189836,0.01804,91498.0,91480.0,0.64011799]
[1765501190044,0.01092943,91496.0,91480.0,0.00161287]
[1765501190252,0.01093027,91489.0,91480.0,0.00161287]
[1765501190460,0.01092991,91492.0,91480.0,0.00161287]
[1765501190660,0.01804,91500.0,91480.0,0.00161287]
[1765501190869,0.01804,91500.0,91480.0,0.64173086]
[1765501191078,0.01804,91502.0,91495.0,0.10920011]
[1765501191286,0.04805776,91510.0,91480.0,0.00161287]
[1765501191287,0.01092848,91504.0,91480.0,0.00161287]
[1765501191511,0.00038602,91502.0,91495.0,0.00161287]
[1765501192922,0.00038602,91502.0,91501.0,0.00161287]
[1765501193277,0.00038602,91502.0,91495.0,0.04312798]
[1765501193480,0.00038602,91502.0,91501.0,0.10920011]
[1765501194291,0.00038602,91502.0,91492.0,0.64011799]
[1765501194493,0.00038602,91502.0,91501.0,0.10920011]
[1765501194695,0.00038602,91502.0,91501.0,0.15232809]
[1765501195456,0.18058338,91535.0,91501.0,0.15232809]
[1765501195655,0.21850617,91531.0,91516.0,0.10920011]
[1765501195857,0.01092526,91531.0,91516.0,0.10920011]
[1765501196171,0.01092573,91527.0,91505.0,0.04312798]
[1765501196373,0.01092514,91532.0,91511.0,0.04312798]
[1765501196711,0.01092514,91532.0,91519.0,0.10920011]
[1765501196990,0.01092573,91527.0,91502.0,0.01821312]
[1765501197326,0.00161287,91520.0,91501.0,0.00011712]
[1765501197334,0.10920011,91558.0,91518.0,1.2907]
[1765501197489,0.03748353,91586.0,91571.0,0.21840975]
[1765501197696,0.07572709,91614.0,91548.0,0.64011799]
[1765501197697,0.0004,91600.0,91576.0,0.64011799]
[1765501197907,0.01091714,91599.0,91582.0,0.01000649]
[1765501198115,0.01091714,91599.0,91572.0,0.01092036]
[1765501198116,0.00161287,91599.0,91572.0,0.01092036]
[1765501198323,0.00161287,91599.0,91575.0,0.01092001]
[1765501198525,0.00161287,91599.0,91580.0,0.64011799]
[1765501198733,0.00161287,91599.0,91582.0,0.04312798]
[1765501198734,0.00038625,91599.0,91582.0,0.04312798]
[1765501199130,0.00038625,91599.0,91589.0,0.64011799]
[1765501199379,0.00038625,91599.0,91592.0,0.04312798]
[1765501199578,0.00038625,91599.0,91595.0,0.04312798]
[1765501199778,0.00038625,91599.0,91592.0,0.04312798]
[1765501200275,0.00038625,91599.0,91596.0,0.0109175]
[1765501200481,0.0004,91600.0,91598.0,1.0]
[1765501200697,0.22915022,91643.0,91625.0,0.52929273]
[1765501200900,0.018,91645.0,91620.0,0.52929273]
[1765501200901,0.00161287,91638.0,91620.0,0.52929273]
[1765501201307,0.05681156,91659.0,91629.0,0.01091357]
[1765501201508,0.25530679,91669.0,91615.0,0.018]
[1765501201509,0.05681156,91669.0,91649.0,0.52929273]
[1765501201659,0.05681156,91672.0,91659.0,0.52929273]
[1765501201861,0.018,91689.0,91664.0,0.05403738]
[1765501202066,0.05681156,91699.0,91679.0,0.8932386]
[1765501202295,0.05681156,91706.0,91693.0,0.52929273]
[1765501202501,0.00038673,91703.0,91693.0,0.52929273]
[1765501202931,0.00038673,91703.0,91690.0,0.52852359]
[1765501203156,0.00038673,91703.0,91684.0,0.21814028]
[1765501203157,0.00038673,91703.0,91684.0,0.01000649]
[1765501203392,0.00038673,91703.0,91664.0,0.50888644]
[1765501203393,0.01090512,91700.0,91675.0,0.01000649]
[1765501203640,0.01090512,91700.0,91674.0,0.01804]
[1765501203641,0.00038673,91703.0,91682.0,0.01090726]
[1765501203857,0.00038673,91703.0,91699.0,0.03271662]
[1765501204334,0.0019996,91703.0,91699.0,0.03271662]
[1765501204534,0.00038673,91703.0,91699.0,0.03271662]
[1765501206332,0.00038673,91703.0,91702.0,0.04312798]
[1765501207381,0.06771181,91741.0,91715.0,0.04312798]
[1765501207597,0.05681156,91734.0,91733.0,0.03271448]
[1765501207806,0.00987768,91734.0,91733.0,0.03271448]
[1765501208015,0.02077876,91734.0,91719.0,0.03271448]
[1765501208232,0.01090179,91728.0,91715.0,0.00011712]
[1765501208434,0.00987768,91733.0,91715.0,0.00011712]
[1765501208435,0.01090298,91718.0,91715.0,0.00011712]
[1765501208652,0.22793976,91717.0,91715.0,0.00011712]
[1765501208844,0.01251585,91718.0,91715.0,0.00011712]
[1765501208845,0.229555,91716.0,91715.0,0.00011712]
[1765501209466,0.229555,91716.0,91700.0,0.01635724]
[1765501209467,0.01090476,91703.0,91700.0,0.01635724]
[1765501209682,0.03263219,91702.0,91700.0,0.01647369]
[1765501209904,0.03263219,91701.0,91700.0,0.01647369]
[1765501210099,0.00987768,91701.0,91700.0,0.02243386]
[1765501210307,0.01090179,91728.0,91700.0,0.02243386]
[1765501210308,0.02275614,91714.0,91703.0,0.01090476]
[1765501210516,0.00987273,91713.0,91706.0,0.01000649]
[1765501210715,0.01090155,91730.0,91706.0,0.01000649]
[1765501210922,0.01090108,91734.0,91702.0,0.01090488]
[1765501210923,0.00987299,91729.0,91728.0,0.03271448]
[1765501211122,0.00987299,91729.0,91714.0,0.03271448]
[1765501211345,0.00987299,91728.0,91714.0,0.03271448]
[1765501211557,0.01090239,91723.0,91714.0,0.03271448]
[1765501211762,0.01090239,91723.0,91700.0,0.06544539]
[1765501211763,0.01090357,91713.0,91700.0,0.06544539]
[1765501211997,0.01090286,91719.0,91701.0,0.00654454]
[1765501212205,0.01090346,91714.0,91702.0,0.04312798]
[1765501212417,0.00987299,91717.0,91702.0,0.04312798]
[1765501212570,0.00987299,91722.0,91716.0,0.01635564]
[1765501212771,0.02076501,91721.0,91716.0,0.01635564]
[1765501213011,0.01090191,91727.0,91700.0,0.01647369]
[1765501213012,0.21810012,91701.0,91700.0,0.00011645]
[1765501213212,0.21810012,91701.0,91650.0,0.00199998]
[1765501213213,0.01090833,91673.0,91660.0,0.01000649]
[1765501213411,0.00172881,91673.0,91645.0,1.0]
[1765501213658,0.00011594,91673.0,91672.0,0.01635564]
[1765501213862,0.00172881,91673.0,91672.0,0.01918325]
[1765501214275,0.00172881,91673.0,91672.0,0.00282761]
[1765501215140,0.21989555,91673.0,91672.0,0.00282761]
[1765501215369,0.31753644,91673.0,91672.0,0.00282761]
[1765501216515,0.24785644,91673.0,91672.0,0.00282761]
[1765501216708,0.31731644,91673.0,91672.0,0.00282761]
[1765501217135,0.327171,91673.0,91672.0,0.00282761]
[1765501218224,0.309211,91673.0,91672.0,0.00282761]
[1765501218429,0.00172881,91673.0,91672.0,0.00282761]
[1765501220758,0.00011594,91673.0,91672.0,0.00282761]
[1765501221956,0.00011594,91673.0,91672.0,0.04595559]
[1765501222319,0.00011594,91673.0,91672.0,0.05273297]
[1765501224879,0.22901308,91698.0,91672.0,0.05273297]
[1765501224880,0.01000089,91714.0,91683.0,0.04312798]
[1765501225093,0.02082948,91713.0,91712.0,0.01635564]
[1765501225328,0.010905,91701.0,91684.0,0.01635564]
[1765501225532,0.01090679,91686.0,91673.0,1.0]
[1765501225732,0.01090655,91688.0,91674.0,0.10067774]
[1765501225939,0.01251942,91688.0,91658.0,0.01635564]
[1765501226150,0.00161287,91688.0,91687.0,0.01635564]
[1765501226362,0.01792,91689.0,91687.0,0.01635564]
[1765501226786,0.01090405,91709.0,91687.0,0.01674237]
[1765501227003,0.01000089,91716.0,91708.0,0.01635564]
[1765501227211,0.00995668,91715.0,91708.0,0.01635564]
[1765501227420,0.00995668,91714.0,91708.0,0.01635564]
[1765501227682,0.00161287,91727.0,91709.0,0.04312798]
[1765501227683,0.00995668,91713.0,91709.0,0.04312798]
[1765501227894,0.00995668,91712.0,91710.0,0.00703884]
[1765501228125,0.00995668,91711.0,91710.0,0.00703884]
[1765501229078,0.00995668,91711.0,91710.0,0.05016682]
[1765501230443,0.00995668,91711.0,91692.0,0.03876093]
[1765501230444,0.21808967,91706.0,91692.0,0.03876093]
[1765501230647,0.01090512,91700.0,91691.0,0.01635564]
[1765501230875,0.01090536,91698.0,91691.0,0.01635564]
[1765501231085,0.00995668,91697.0,91691.0,0.01635564]
[1765501231294,0.01251799,91700.0,91691.0,0.01635564]
[1765501231295,0.00995668,91696.0,91691.0,0.01635564]
[1765501231506,0.01090393,91710.0,91691.0,0.01635564]
[1765501231507,0.00995668,91695.0,91693.0,0.21811711]
[1765501231737,0.01792,91716.0,91700.0,0.04312798]
[1765501231941,0.01788,91716.0,91715.0,0.01635564]
[1765501232156,0.0294854,91716.0,91715.0,0.0015734]
[1765501233140,0.0296024,91716.0,91715.0,0.0015734]
[1765501234170,0.01010953,91716.0,91715.0,0.0015734]
[1765501235034,0.01010953,91716.0,91715.0,0.02626477]
[1765501235236,0.01010953,91716.0,91715.0,0.0015734]
[1765501235644,0.01010953,91716.0,91715.0,0.04470138]
[1765501236247,0.000117,91716.0,91715.0,0.04470138]
[1765501237607,0.000117,91716.0,91715.0,0.21964023]
[1765501237753,0.000117,91716.0,91715.0,0.26276821]
[1765501237962,0.01788,91741.0,91729.0,0.01090167]
[1765501238162,0.01089811,91759.0,91729.0,0.01090167]
[1765501238163,0.00999532,91740.0,91732.0,0.01090132]
[1765501238366,0.00999532,91739.0,91734.0,0.01090108]
[1765501238567,0.00999532,91738.0,91735.0,0.01090096]
[1765501238766,0.00999532,91737.0,91735.0,0.28119824]
[1765501238995,0.00011698,91740.0,91739.0,1.04312798]
[1765501239194,0.0101128,91740.0,91739.0,0.04312798]
[1765501239446,0.0101128,91740.0,91739.0,0.8810345]
[1765501239672,0.00011698,91740.0,91739.0,0.8810345]
[1765501239877,0.00011698,91740.0,91739.0,0.07930652]
[1765501240092,0.01011347,91740.0,91739.0,0.07930652]
[1765501240301,0.01784,91764.0,91750.0,0.01089918]
[1765501240506,0.00999232,91763.0,91756.0,0.01089846]
[1765501240652,0.00999232,91762.0,91753.0,0.01089882]
[1765501240855,0.00999232,91761.0,91754.0,0.0108987]
[1765501241053,0.00999232,91760.0,91756.0,0.01089846]
[1765501241239,0.00011693,91762.0,91755.0,0.02938063]
[1765501241240,0.00999232,91759.0,91755.0,0.02938063]
[1765501241438,0.00999232,91758.0,91755.0,0.02938063]
[1765501241643,0.00999232,91757.0,91756.0,0.21796939]
[1765501241857,0.00999232,91757.0,91756.0,0.25137671]
[1765501242067,0.00999232,91757.0,91756.0,0.03340732]
[1765501242266,0.00999232,91757.0,91756.0,0.29450469]
[1765501242492,0.00011693,91762.0,91761.0,0.2610855]
[1765501242695,0.00011693,91762.0,91761.0,0.04312798]
[1765501242966,0.00011693,91762.0,91761.0,0.08020692]
[1765501243180,9e-05,91769.0,91761.0,0.55490692]
[1765501243400,9e-05,91769.0,91768.0,0.31108726]
[1765501243673,0.00048694,91770.0,91768.0,1.26795928]
[1765501243889,0.01089241,91807.0,91782.0,0.01000649]
[1765501244153,0.00078993,91800.0,91790.0,0.04312798]
[1765501245411,0.00078993,91800.0,91799.0,0.03269345]
[1765501246121,0.00078993,91800.0,91779.0,0.03269345]
[1765501246122,0.01089407,91793.0,91779.0,0.03269345]
[1765501246339,0.01089431,91791.0,91780.0,0.00758214]
[1765501246548,0.0108936,91797.0,91780.0,0.00758214]
[1765501246753,0.0024028,91800.0,91780.0,0.00758214]
[1765501246754,0.0024028,91800.0,91788.0,0.01089467]
[1765501246967,0.0024028,91800.0,91799.0,0.04312798]
[1765501246968,0.00078993,91800.0,91799.0,0.04312798]
[1765501248846,0.01089039,91824.0,91799.0,0.04312798]
[1765501248847,0.01089028,91825.0,91805.0,0.02001298]
[1765501249054,0.0001169,91825.0,91816.0,0.04312798]
[1765501249260,0.0001169,91825.0,91824.0,0.03269345]
[1765501249958,0.00171737,91825.0,91824.0,0.03269345]
[1765501250163,0.00171737,91825.0,91797.0,0.01000649]
[1765501250164,0.01089158,91814.0,91797.0,0.01000649]
[1765501250369,0.01089217,91809.0,91795.0,0.03269345]
[1765501250576,0.00081502,91798.0,91796.0,0.00758214]
[1765501250787,0.00172977,91825.0,91803.0,0.04312798]
[1765501250993,0.00172977,91825.0,91813.0,0.01000649]
[1765501251205,0.0001169,91825.0,91824.0,0.03269345]
[1765501252697,0.2179225,91825.0,91824.0,0.03269345]
[1765501252843,0.0001169,91825.0,91824.0,0.03269345]
[1765501253500,0.01089122,91817.0,91809.0,0.03269345]
[1765501253723,0.01089146,91815.0,91809.0,0.03269345]
[1765501253907,0.01089146,91815.0,91795.0,0.03253345]
[1765501253908,0.01089289,91803.0,91795.0,0.03253345]
[1765501254143,0.21783882,91811.0,91785.0,0.02926333]
[1765501254144,0.00161287,91796.0,91785.0,0.02926333]
[1765501254293,0.00161287,91796.0,91779.0,0.03269345]
[1765501254294,0.21791016,91781.0,91779.0,0.03269345]
[1765501254496,0.01089526,91783.0,91779.0,0.03269345]
[1765501254697,0.01250813,91783.0,91779.0,0.03269345]
[1765501254902,0.00161287,91783.0,91779.0,0.03269345]
[1765501255309,0.00161287,91783.0,91779.0,0.03308338]
[1765501255736,0.0178,91786.0,91779.0,0.03308338]
[1765501255964,0.00078593,91797.0,91788.0,0.01000649]
[1765501256168,0.0108898,91829.0,91803.0,0.01089289]
[1765501256406,0.0108898,91829.0,91825.0,0.03269345]
[1765501256407,0.00161287,91829.0,91825.0,0.03269345]
[1765501256606,0.0178,91828.0,91825.0,0.03269345]
[1765501256813,0.0004,91830.0,91825.0,0.03269345]
[1765501257762,0.00051693,91830.0,91825.0,0.03269345]
[1765501258165,0.00051693,91830.0,91827.0,0.01089004]
[1765501258394,0.00051693,91830.0,91829.0,0.21779612]
[1765501258518,0.00051693,91830.0,91829.0,0.2609241]
[1765501258725,0.01000089,91876.0,91837.0,0.01000649]
[1765501258933,0.01000089,91876.0,91851.0,0.01088719]
[1765501258934,0.01937287,91875.0,91851.0,0.01088719]
[1765501259136,0.00161287,91875.0,91852.0,0.03592858]
[1765501259336,0.01776,91874.0,91852.0,0.02504151]
[1765501259578,0.01776,91873.0,91854.0,0.04312798]
[1765501259777,0.01776,91873.0,91851.0,0.04312798]
[1765501259778,0.0108847,91872.0,91851.0,0.04312798]
[1765501259950,0.01088482,91871.0,91851.0,0.04312798]
[1765501260154,0.00161287,91872.0,91851.0,0.04312798]
[1765501260555,0.01088518,91868.0,91867.0,0.03269345]
[1765501260761,0.01088743,91849.0,91841.0,0.03269345]
[1765501260968,0.02864755,91848.0,91826.0,0.00827118]
[1765501261174,0.01088826,91842.0,91826.0,0.00827118]
[1765501261377,0.01088826,91842.0,91813.0,0.0108917]
[1765501261378,0.00161287,91842.0,91813.0,1.0]